bitfinex-derivatives/quotes_ETHF0:USTF0_20250107
["timestamp","ask_amount","ask_price","bid_price","bid_amount"]
[1736210095042,0.8771,3686.7,3686.6,3.2078]
[1736210095245,0.8771,3686.7,3686.6,44.0078]
[1736210096142,0.8771,3686.7,3686.6,44.27893]
[1736210099247,0.8771,3686.7,3686.6,40.8]
[1736210099447,1.14822,3686.7,3686.6,40.8]
[1736210102350,0.8771,3686.7,3686.6,41.07113]
[1736210103156,0.4494,3686.7,3686.6,44.27893]
[1736210107757,0.27109,3687.2,3686.6,44.27893]
[1736210108059,0.27097,3688.7,3687.9,0.27103]
[1736210108246,4.25912678,3689.1,3687.0,5.36316792]
[1736210108247,4.25912678,3689.1,3688.6,2.15536792]
[1736210108453,0.4499,3689.0,3688.8,2.15536792]
[1736210108857,4.25912678,3689.1,3689.0,0.27095]
[1736210109151,5.32390848,3689.3,3689.2,0.27093]
[1736210109348,3.93460848,3689.3,3689.2,2.42629792]
[1736210109554,6.38869018,3689.8,3689.7,0.2709]
[1736210109861,3.64626895,3690.8,3690.7,0.27082]
[1736210110053,3.51599264,3691.1,3690.7,8.62653584]
[1736210110361,7.45347187,3691.9,3691.8,0.27074]
[1736210110549,8.51577531,3692.1,3692.0,0.27073]
[1736210110752,3.94714648,3692.1,3692.0,2.42609792]
[1736210110948,0.49733046,3692.1,3692.0,2.42609792]
[1736210111254,4.6e-07,3692.1,3692.0,45.8]
[1736210111555,3.2078,3693.4,3692.5,0.27069]
[1736210111752,0.425,3693.8,3692.6,0.10343689]
[1736210111947,5.4192,3693.2,3692.9,2.15536792]
[1736210112261,5.4192,3693.0,3692.8,10.65339554]
[1736210112446,3.2078,3693.5,3692.8,10.65339554]
[1736210112647,5.4192,3693.2,3692.8,10.65339554]
[1736210112853,5.4192,3692.9,3692.8,3.2078]
[1736210113052,5.4192,3692.9,3692.4,3.2078]
[1736210113260,3.2078,3693.4,3692.5,2.53449592]
[1736210113554,3.2078,3693.4,3692.4,3.2078]
[1736210113555,5.4192,3692.5,3692.4,3.2078]
[1736210114253,3.2078,3692.6,3692.4,10.4746997]
[1736210114452,6.7364733,3692.5,3691.5,15.5711586]
[1736210114657,3.2078,3692.2,3691.1,17.8723797]
[1736210114959,3.2078,3691.2,3691.1,12.57507277]
[1736210115159,0.77053519,3691.2,3691.1,12.57507277]
[1736210115452,9.9442733,3692.2,3691.1,15.78287277]
[1736210115663,3.2078,3692.2,3691.4,2.53449592]
[1736210115850,3.2078,3692.2,3691.1,9.88082627]
[1736210117651,3.2078,3692.2,3691.1,3.2078]
[1736210118756,0.4205,3692.5,3692.0,2.53449592]
[1736210119057,0.4205,3692.5,3692.4,3.2078]
[1736210119254,0.4205,3692.5,3691.5,3.2078]
[1736210119255,3.6283,3692.5,3691.5,3.2078]
[1736210119456,3.2078,3691.7,3690.9,3.2078]
[1736210119657,3.2078,3691.3,3691.0,40.8]
[1736210120055,3.2078,3691.7,3691.2,2.53449592]
[1736210120455,3.2078,3691.7,3691.5,0.27076]
[1736210120957,3.2078,3693.0,3691.6,2.53449592]
[1736210121257,3.6438,3693.5,3692.7,3.2078]
[1736210121857,3.6438,3693.5,3692.8,40.8]
[1736210122160,6.90697733,3693.4,3692.8,40.8]
[1736210122353,3.6438,3693.5,3692.8,40.8]
[1736210122762,0.436,3693.5,3692.8,40.8]
[1736210122958,3.2078,3693.9,3693.2,2.53449592]
[1736210123353,3.2078,3693.9,3693.1,3.47844]
[1736210123557,3.2078,3693.9,3693.1,3.2078]
[1736210124266,3.47839,3693.9,3693.1,3.2078]
[1736210124457,3.2078,3693.9,3693.1,3.2078]
[1736210125065,0.27061,3693.7,3693.1,3.2078]
[1736210125262,3.2078,3693.9,3693.1,3.2078]
[1736210125664,3.47839,3693.9,3693.1,3.2078]
[1736210125857,0.27062,3693.6,3693.1,3.2078]
[1736210126062,0.27062,3693.6,3692.2,1.341]
[1736210126063,3.2078,3693.4,3692.6,3.2078]
[1736210126262,5.74229592,3693.4,3692.2,3.2078]
[1736210126466,6.30848854,3693.3,3692.2,3.2078]
[1736210126764,6.30848854,3693.3,3692.3,40.8]
[1736210126960,3.2078,3693.0,3692.3,40.8]
[1736210127262,0.27067,3692.8,3692.3,40.8]
[1736210127464,0.73337,3692.9,3692.3,40.8]
[1736210127668,0.73336,3692.9,3692.3,40.8]
[1736210127866,3.2078,3692.5,3692.3,40.8]
[1736210128063,7.19816978,3692.8,3692.3,40.8]
[1736210128370,0.4618,3692.8,3692.3,40.8]
[1736210128567,0.2707,3692.4,3692.3,40.8]
[1736210128770,6.79862305,3692.7,3691.7,3.2078]
[1736210128969,3.2078,3692.5,3691.7,3.2078]
[1736210129268,3.47849,3692.5,3691.8,40.8]
[1736210129462,6.79862305,3692.4,3691.8,40.8]
[1736210129668,3.2078,3692.5,3691.8,40.8]
[1736210130371,6.73827178,3692.4,3691.8,40.8]
[1736210130567,0.27072,3692.2,3691.8,40.8]
[1736210130768,3.2078,3692.5,3691.8,40.8]
[1736210131073,1.8037,3692.9,3692.5,0.27069]
[1736210131074,0.4627,3692.9,3692.5,0.27069]
[1736210131264,3.2078,3693.3,3692.2,3.2078]
[1736210131465,0.27061,3693.7,3692.9,3.2078]
[1736210131665,3.9204,3693.9,3692.9,3.2078]
[1736210131864,0.722,3693.8,3692.9,3.2078]
[1736210132066,0.27061,3693.6,3692.9,3.2078]
[1736210132268,0.4514,3693.8,3692.9,3.2078]
[1736210132665,0.27062,3693.5,3692.9,3.2078]
[1736210133066,3.2078,3693.5,3692.9,3.2078]
[1736210133272,0.27063,3693.4,3692.9,3.2078]
[1736210133570,3.2078,3693.5,3692.9,3.2078]
[1736210133965,0.27064,3693.2,3692.9,3.2078]
[1736210134167,3.2078,3693.5,3692.9,3.2078]
[1736210134773,3.2078,3693.5,3693.0,40.8]
[1736210135167,0.27065,3693.1,3693.0,40.8]
[1736210135369,0.27064,3693.3,3693.0,40.8]
[1736210135568,0.27063,3693.4,3693.0,40.8]
[1736210136068,3.2078,3693.5,3693.0,40.8]
[1736210136267,0.27065,3693.1,3693.0,40.8]
[1736210136468,0.27066,3693.0,3692.9,3.2078]
[1736210136970,7.25552254,3693.4,3692.9,3.2078]
[1736210137267,7.25552254,3693.4,3693.0,0.10379953]
[1736210137268,0.27065,3693.1,3693.0,0.10379953]
[1736210138077,3.2078,3693.5,3693.0,0.10379567]
[1736210138368,3.2078,3693.5,3692.9,3.2078]
[1736210138369,3.2078,3693.5,3693.1,0.10411421]
[1736210138573,3.2078,3693.5,3693.2,0.10411421]
[1736210138768,3.2078,3693.5,3692.8,3.2078]
[1736210138972,0.27065,3693.2,3692.9,0.10411694]
[1736210139274,0.27065,3693.1,3693.0,0.10411694]
[1736210139775,3.47842,3693.5,3693.0,0.10411694]
[1736210139969,3.47844,3693.2,3693.1,0.10411694]
[1736210140169,6.62835918,3693.4,3693.1,0.10411694]
[1736210140385,0.27062,3693.5,3693.2,0.10411694]
[1736210140570,3.2078,3693.6,3693.3,0.10411694]
[1736210140770,0.27062,3693.5,3693.4,0.10411694]
[1736210141671,0.05,3693.2,3692.1,4.5478]
[1736210141876,0.27069,3692.6,3692.2,40.8]
[1736210142071,3.2078,3692.6,3692.2,40.8]
[1736210142370,0.27071,3692.3,3692.2,40.8]
[1736210145275,3.2078,3692.6,3692.2,40.8]
[1736210145472,0.4268,3692.9,3692.2,40.8]
[1736210145473,0.27068,3692.7,3692.2,40.8]
[1736210145876,0.27069,3692.5,3692.2,40.8]
[1736210146075,0.4268,3692.9,3692.2,40.8]
[1736210146278,0.27069,3692.6,3692.2,40.8]
[1736210146483,0.27071,3692.3,3692.2,40.8]
[1736210146975,0.27069,3692.5,3692.2,40.8]
[1736210147380,0.2707,3692.4,3692.2,40.8]
[1736210147579,0.2707,3692.4,3691.7,0.27075]
[1736210147885,0.27069,3692.6,3691.9,0.27073]
[1736210148088,0.27069,3692.6,3692.4,40.8]
[1736210148280,0.27067,3692.8,3692.4,40.8]
[1736210148680,3.2078,3692.9,3692.4,40.8]
[1736210148877,0.27069,3692.5,3692.4,40.8]
[1736210150283,3.47849,3692.5,3692.4,40.8]
[1736210150584,3.2078,3692.9,3692.4,40.8]
[1736210150784,0.27068,3692.7,3692.4,40.8]
[1736210151490,3.2078,3692.9,3692.6,0.27068]
[1736210151687,0.05,3693.1,3692.8,3.2078]
[1736210151983,0.05,3693.3,3692.8,3.47847]
[1736210152284,0.05,3693.3,3692.8,3.2078]
[1736210152485,0.05,3693.3,3692.9,0.27066]
[1736210152678,0.05,3693.3,3692.8,3.2078]
[1736210152985,0.05,3693.3,3692.9,0.27066]
[1736210153283,0.05,3693.3,3692.8,3.2078]
[1736210153284,0.32063,3693.3,3692.8,3.2078]
[1736210153488,0.05,3693.3,3692.9,0.27066]
[1736210154277,0.05,3693.3,3693.0,0.27065]
[1736210154477,0.27065,3693.1,3692.8,3.2078]
[1736210154682,0.05,3693.3,3692.8,3.2078]
[1736210154881,0.05,3693.3,3692.9,0.27066]
[1736210155183,0.05,3693.3,3693.1,0.27065]
[1736210155379,0.05,3693.3,3693.2,40.8]
[1736210155784,0.05,3693.3,3693.2,44.0078]
[1736210156187,0.05,3693.3,3693.2,44.27844]
[1736210157078,0.05,3693.8,3693.2,44.0078]
[1736210157276,0.05,3693.8,3693.7,3.4784]
[1736210158174,0.05,3693.8,3693.7,44.2784]
[1736210158383,3.12785302,3694.3,3693.7,49.0078]
[1736210158580,3.2078,3694.9,3694.2,3.47837]
[1736210158581,3.12785302,3694.7,3694.2,3.47837]
[1736210158780,3.12785302,3694.7,3694.2,3.2078]
[1736210158984,3.12785302,3694.7,3693.7,40.8]
[1736210158985,3.12785302,3694.7,3694.6,3.47834]
[1736210159688,3.12785302,3694.7,3694.6,44.27834]
[1736210160580,3.12785302,3694.7,3694.6,44.0078]
[1736210160775,0.4269,3695.3,3694.6,44.0078]
[1736210161182,0.27053,3694.8,3694.6,44.0078]
[1736210161382,0.4269,3695.3,3694.6,44.27834]
[1736210161582,0.27051,3695.0,3694.6,44.27834]
[1736210161783,0.27051,3695.1,3694.6,44.27834]
[1736210161979,0.27051,3695.0,3694.6,44.0078]
[1736210162184,3.2078,3695.0,3694.2,3.2078]
[1736210162689,3.2078,3695.0,3694.2,44.0078]
[1736210162891,0.27055,3694.5,3694.2,44.0078]
[1736210163191,3.2078,3694.6,3693.9,4.18385821]
[1736210163382,0.27058,3694.0,3693.9,4.18385821]
[1736210163581,0.27057,3694.2,3693.6,4.45446821]
[1736210163786,6.66980499,3694.5,3693.7,0.2706]
[1736210164088,0.27058,3694.1,3693.6,4.18385821]
[1736210164392,0.27055,3694.4,3693.6,4.18385821]
[1736210164593,0.2706,3693.8,3693.7,40.8]
[1736210165188,0.8867,3694.0,3693.7,40.8]
[1736210165386,0.27059,3693.9,3693.7,40.8]
[1736210165585,0.2706,3693.8,3693.7,40.8]
[1736210166187,0.8867,3694.0,3693.7,40.8]
[1736210166788,1.15729,3694.0,3693.7,40.8]
[1736210166990,0.2706,3693.8,3693.7,40.8]
[1736210167198,0.8867,3694.0,3693.7,40.8]
[1736210167487,0.2706,3693.8,3693.7,40.8]
[1736210168087,0.8867,3694.0,3693.7,40.8]
[1736210168290,1.15728,3694.0,3693.7,40.8]
[1736210168486,0.8867,3694.0,3693.7,40.8]
[1736210169393,1.15728,3694.0,3693.7,40.8]
[1736210169593,0.8867,3694.0,3693.7,40.8]
[1736210170294,1.15728,3694.0,3693.7,40.8]
[1736210170693,0.8867,3694.0,3693.7,40.8]
[1736210170999,1.15729,3694.0,3693.7,40.8]
[1736210171394,1.15729,3694.0,3693.0,3.2078]
[1736210171395,0.27064,3693.3,3693.0,3.2078]
[1736210171692,2.534655,3693.1,3692.7,4.18385821]
[1736210171888,2.534655,3693.1,3692.8,40.8]
[1736210172186,0.27066,3692.9,3692.8,40.8]
[1736210172388,3.47846,3692.9,3692.8,40.8]
[1736210172586,3.47846,3692.9,3692.1,7.39165821]
[1736210172587,0.2707,3692.4,3692.1,7.39165821]
[1736210172993,2.534655,3692.7,3692.1,7.39165821]
[1736210173300,3.6331,3692.9,3692.2,40.8]
[1736210173893,0.4253,3692.9,3692.3,0.27071]
[1736210174200,0.4253,3692.9,3692.2,40.8]
[1736210174899,0.2707,3692.5,3692.2,40.8]
[1736210175393,0.4253,3692.9,3692.2,40.8]
[1736210175598,0.27068,3692.7,3692.2,40.8]
[1736210175995,0.4253,3692.9,3692.2,40.8]
[1736210176192,3.12785302,3693.2,3692.5,3.2078]
[1736210176495,3.12785302,3693.2,3693.0,3.2078]
[1736210176694,3.12785302,3693.2,3693.1,0.27065]
[1736210177298,3.12785302,3693.2,3693.1,41.07065]
[1736210177495,0.4201,3693.8,3693.4,0.27063]
[1736210177693,0.6907,3693.8,3693.2,0.27064]
[1736210177996,0.2706,3693.7,3693.1,41.07065]
[1736210178191,0.4201,3693.8,3693.3,0.27063]
[1736210178392,0.4201,3693.8,3693.1,40.8]
[1736210178792,0.4201,3693.8,3693.5,0.27061]
[1736210179189,0.27061,3693.7,3693.2,0.27064]
[1736210179803,0.4201,3693.8,3693.1,40.8]
[1736210180601,0.27064,3693.3,3693.1,40.8]
[1736210180796,0.4201,3693.8,3693.1,40.8]
[1736210181197,0.4201,3693.8,3693.3,0.27063]
[1736210181498,0.4201,3693.8,3693.4,0.27063]
[1736210181902,0.4201,3693.8,3693.1,40.8]
[1736210182089,0.6907,3693.8,3693.2,0.27064]
[1736210182589,0.6907,3693.8,3693.3,0.27063]
[1736210183202,0.4201,3693.8,3693.1,40.8]
[1736210183602,6.33565302,3694.4,3693.1,5.742455]
[1736210183997,2.965755,3694.3,3693.1,3.2078]
[1736210184199,3.397355,3694.3,3693.2,41.07064]
[1736210184507,0.27061,3693.7,3693.2,40.8]
[1736210184698,0.27059,3693.9,3693.2,40.8]
[1736210184898,3.397355,3694.3,3693.4,0.27063]
[1736210185099,0.27059,3694.0,3693.4,0.27063]
[1736210185906,3.397355,3694.3,3693.2,40.8]
[1736210186207,0.27059,3693.9,3693.3,0.27063]
[1736210187002,3.397355,3694.3,3693.2,41.07064]
[1736210187003,0.2706,3693.8,3693.2,41.07064]
[1736210187206,0.27059,3693.9,3693.3,0.27063]
[1736210188406,0.2706,3693.8,3693.2,41.07064]
[1736210188602,5.51614479,3694.3,3693.2,40.8]
[1736210188899,5.51614479,3694.3,3693.6,3.2078]
[1736210189105,0.27058,3694.1,3693.4,0.27062]
[1736210189303,5.51614479,3694.3,3693.2,44.0078]
[1736210189607,5.51614479,3694.3,3693.3,0.27063]
[1736210190104,0.27059,3693.9,3693.3,0.27063]
[1736210190298,5.51614479,3694.3,3693.2,44.0078]
[1736210190505,0.27062,3693.6,3693.2,44.0078]
[1736210190697,0.27063,3693.4,3693.2,44.0078]
[1736210191108,0.2706,3693.7,3693.2,44.0078]
[1736210191302,0.4532,3693.8,3693.2,44.0078]
[1736210191603,0.27063,3693.3,3693.2,44.0078]
[1736210191809,0.27066,3692.9,3692.8,4.18385821]
[1736210192201,0.27066,3692.9,3692.5,3.2078]
[1736210192202,0.4615,3693.2,3692.5,3.2078]
[1736210192407,0.4615,3693.2,3692.4,4.18385821]
[1736210192408,0.27069,3692.6,3692.4,4.18385821]
[1736210192705,0.27069,3692.5,3692.4,4.18385821]
[1736210192907,0.27069,3692.5,3692.4,44.98385821]
[1736210193905,0.2707,3692.4,3691.6,7.39165821]
[1736210194103,3.2078,3692.1,3691.6,7.39165821]
[1736210194411,0.27075,3691.7,3691.6,4.18385821]
[1736210194907,0.27075,3691.7,3691.6,44.98385821]
[1736210195626,0.27075,3691.7,3691.6,40.8]
[1736210196207,3.2078,3691.7,3691.0,4.18385821]
[1736210196413,10.04901414,3691.7,3691.0,4.18385821]
[1736210196710,0.27076,3691.6,3691.0,4.18385821]
[1736210196913,10.50511414,3691.7,3691.0,4.18385821]
[1736210196914,0.2708,3691.1,3691.0,4.18385821]
[1736210197407,0.27079,3691.2,3690.6,40.8]
[1736210197610,0.27082,3690.7,3690.6,40.8]
[1736210197802,0.27082,3690.8,3690.6,40.8]
[1736210198306,2.534655,3691.0,3690.6,40.8]
[1736210198512,6.94897035,3690.7,3690.6,40.8]
[1736210198712,0.27082,3690.7,3690.6,40.8]
[1736210198917,0.70072,3690.7,3690.6,40.8]
[1736210199408,0.4299,3690.7,3690.0,3.2078]
[1736210199909,0.27084,3690.6,3690.1,40.8]
[1736210200104,0.70073,3690.7,3690.1,40.8]
[1736210200301,0.27083,3690.6,3690.1,40.8]
[1736210200509,0.4299,3690.7,3690.1,40.8]
[1736210200510,0.27085,3690.3,3690.1,40.8]
[1736210200711,2.534655,3690.6,3690.1,40.8]
[1736210200916,0.27084,3690.5,3690.1,40.8]
[1736210201117,0.27086,3690.2,3690.1,40.8]
[1736210202411,0.4299,3690.7,3690.1,40.8]
[1736210203303,0.4299,3690.7,3690.2,0.27086]
[1736210203506,0.8923,3691.2,3690.6,3.2078]
[1736210203913,6.61699048,3691.1,3690.6,3.2078]
[1736210204111,0.8923,3691.2,3690.6,3.2078]
[1736210204514,0.2708,3691.1,3690.6,3.2078]
[1736210204708,0.8923,3691.2,3690.2,3.2078]
[1736210204910,0.27082,3690.8,3690.2,3.2078]
[1736210205217,0.27083,3690.7,3690.2,3.2078]
[1736210205519,0.27085,3690.4,3690.1,40.8]
[1736210205723,5.742455,3691.0,3690.1,40.8]
[1736210206020,0.27085,3690.4,3690.1,40.8]
[1736210206325,0.27085,3690.5,3690.1,40.8]
[1736210206513,0.27085,3690.4,3690.1,40.8]
[1736210207016,6.66595903,3690.9,3690.1,40.8]
[1736210207211,0.27086,3690.2,3690.1,40.8]
[1736210208916,0.27085,3690.4,3690.1,40.8]
[1736210209116,3.2078,3690.6,3690.1,40.8]
[1736210209513,3.2078,3690.6,3690.1,41.07087]
[1736210209714,3.2078,3690.6,3690.1,40.8]
[1736210210016,0.27085,3690.4,3690.1,40.8]
[1736210210414,3.2078,3690.6,3690.1,40.8]
[1736210210719,0.27085,3690.4,3690.1,40.8]
[1736210211217,0.27086,3690.3,3690.1,40.8]
[1736210211412,0.27085,3690.4,3690.1,40.8]
[1736210211721,3.2078,3690.6,3690.1,40.8]
[1736210212019,0.27085,3690.4,3690.1,40.8]
[1736210212619,3.2078,3690.6,3690.1,40.8]
[1736210212818,0.27086,3690.2,3690.1,40.8]
[1736210213709,5.742455,3690.6,3689.8,3.2078]
[1736210213932,0.27088,3689.9,3689.8,3.2078]
[1736210214222,3.2078,3690.0,3689.3,3.2078]
[1736210214423,3.2078,3690.0,3688.8,3.2078]
[1736210214424,0.4317,3689.8,3688.8,3.2078]
[1736210214614,0.4317,3689.8,3688.9,0.27095]
[1736210214813,0.4317,3689.8,3689.0,40.8]
[1736210215114,0.27093,3689.4,3689.0,40.8]
[1736210215316,2.966355,3689.8,3689.0,40.8]
[1736210215517,0.27094,3689.1,3689.0,40.8]
[1736210215821,0.27094,3689.2,3689.0,40.8]
[1736210216124,2.534655,3689.4,3689.0,40.8]
[1736210216325,0.27094,3689.1,3689.0,40.8]
[1736210217921,3.2078,3689.2,3688.2,3.2078]
[1736210218228,2.534655,3688.9,3688.2,3.2078]
[1736210218534,0.27099,3688.4,3688.3,40.8]
[1736210220422,10.08393336,3688.4,3687.3,3.2078]
[1736210220620,10.08393336,3688.4,3686.9,0.2711]
[1736210220621,0.27106,3687.5,3686.9,3.2078]
[1736210220923,2.534655,3687.6,3686.9,3.2078]
[1736210221126,0.27106,3687.5,3686.9,3.2078]
[1736210221425,0.27109,3687.1,3687.0,40.8]
[1736210221626,0.27108,3687.2,3687.0,40.8]
[1736210221826,7.34011225,3687.5,3687.0,40.8]
[1736210222025,0.27109,3687.1,3687.0,40.8]
[1736210222323,0.4627,3687.5,3687.0,41.0711]
[1736210222527,0.4627,3687.5,3687.0,40.8]
[1736210222730,0.73376,3687.5,3687.0,40.8]
[1736210222928,0.4627,3687.5,3687.0,40.8]
[1736210223330,0.4217,3687.9,3687.0,40.8]
[1736210223831,0.4627,3688.2,3687.5,3.2078]
[1736210224429,3.47879,3688.4,3687.7,0.27104]
[1736210224624,3.2078,3688.4,3687.8,0.27104]
[1736210224830,3.2078,3688.4,3687.5,3.2078]
[1736210225031,0.27102,3688.1,3687.5,3.2078]
[1736210225233,0.27103,3687.9,3687.5,3.2078]
[1736210225724,0.27104,3687.8,3687.5,3.2078]
[1736210226828,0.27103,3687.9,3687.6,40.8]
[1736210227929,0.27104,3687.8,3687.6,40.8]
[1736210228333,6.72058808,3688.1,3687.6,40.8]
[1736210228534,0.27104,3687.8,3687.6,40.8]
[1736210228832,6.72058808,3688.1,3687.6,40.8]
[1736210229025,0.27104,3687.7,3687.6,40.8]
[1736210229222,0.27107,3687.3,3687.2,3.2078]
[1736210229524,7.19974301,3687.3,3687.2,3.2078]
[1736210229933,7.19974301,3687.3,3686.8,3.2078]
[1736210229934,0.27111,3686.9,3686.8,3.2078]
[1736210230228,0.27111,3686.9,3686.0,40.8]
[1736210230229,6.196055,3687.2,3686.0,44.0078]
[1736210230432,0.27114,3686.4,3686.0,44.0078]
[1736210230627,0.27115,3686.3,3686.0,3.2078]
[1736210230826,0.4396,3686.7,3686.0,3.2078]
[1736210231037,0.4396,3686.7,3686.1,40.8]
[1736210231235,6.74223153,3686.6,3686.2,0.27115]
[1736210231439,1.264,3686.9,3686.1,40.8]
[1736210231440,6.196055,3687.2,3686.1,40.8]
[1736210231629,0.27109,3687.1,3686.4,3.47894]
[1736210232033,7.460055,3687.2,3686.1,40.8]
[1736210232335,0.8768,3687.6,3686.8,3.47891]
[1736210232336,1.264,3687.4,3686.8,3.47891]
[1736210232730,1.53507,3687.4,3686.8,3.2078]
[1736210233037,1.264,3687.4,3686.4,3.2078]
[1736210233238,0.27109,3687.1,3686.5,0.27113]
[1736210233538,0.27109,3687.1,3686.4,3.2078]
[1736210233731,0.27111,3686.9,3686.4,3.2078]
[1736210233931,2.993355,3687.2,3686.4,3.2078]
[1736210234135,0.27111,3686.8,3686.4,3.2078]
[1736210234639,6.81270163,3687.1,3686.5,0.27113]
[1736210235035,7.08379163,3687.1,3686.5,0.27113]
[1736210235339,0.2711,3687.0,3686.4,3.47894]
[1736210236029,0.2711,3687.0,3686.4,3.2078]
[1736210236538,6.81270163,3687.1,3686.4,3.2078]
[1736210236737,0.2711,3687.0,3686.4,3.47894]
[1736210237240,7.08379163,3687.1,3686.4,3.47894]
[1736210237541,6.81270163,3687.1,3686.4,3.47894]
[1736210237837,0.2711,3687.0,3686.4,3.2078]
[1736210238337,0.27111,3686.9,3686.4,3.2078]
[1736210238532,3.2078,3688.0,3686.8,3.2078]
[1736210238730,0.4333,3687.8,3687.2,3.2078]
[1736210238927,2.534655,3687.7,3687.3,40.8]
[1736210239132,0.27107,3687.4,3687.3,40.8]
[1736210239341,11.25663439,3687.6,3686.4,3.2078]
[1736210239641,2.534655,3687.0,3686.4,3.2078]
[1736210239841,0.27112,3686.8,3686.5,40.8]
[1736210240142,0.27115,3686.4,3686.0,3.2078]
[1736210240739,0.27115,3686.4,3686.1,40.8]
[1736210241441,2.534655,3686.6,3686.1,40.8]
[1736210241442,0.27114,3686.5,3686.1,40.8]
[1736210241743,2.534655,3686.6,3686.1,40.8]
[1736210241942,0.27113,3686.5,3686.1,40.8]
[1736210242941,0.27114,3686.4,3686.1,40.8]
[1736210243137,2.534655,3686.6,3686.1,40.8]
[1736210243444,2.534655,3686.2,3685.6,3.2078]
[1736210243742,0.27119,3685.7,3685.0,3.2078]
[1736210243944,2.534655,3685.4,3685.0,3.2078]
[1736210244240,0.27124,3685.1,3685.0,3.2078]
[1736210244437,7.09075051,3685.3,3684.4,3.2078]
[1736210244639,0.27127,3684.7,3684.4,3.2078]
[1736210244946,6.93017904,3684.6,3684.4,3.2078]
[1736210245142,6.65890904,3684.6,3684.3,40.8]
[1736210245438,2.534655,3684.4,3684.0,4.18385821]
[1736210245645,0.27129,3684.4,3684.0,4.18385821]
[1736210245946,0.27129,3684.4,3684.1,40.8]
[1736210246446,0.27134,3683.8,3683.4,3.2078]
[1736210246643,0.27133,3683.9,3683.1,0.0521]
[1736210246846,2.534655,3684.0,3683.1,0.0521]
[1736210246847,6.90056688,3683.7,3683.1,0.0521]
[1736210247142,6.73739697,3683.8,3683.2,40.8]
[1736210247334,6.73739697,3683.6,3683.2,40.8]
[1736210247747,6.73739697,3683.7,3683.2,40.8]
[1736210247940,2.534655,3684.0,3683.2,40.8]
[1736210248245,6.88752234,3683.6,3683.2,41.07137]
[1736210248551,2.805975,3684.0,3683.2,41.07137]
[1736210248742,0.27129,3684.5,3683.6,3.2078]
[1736210248946,0.27129,3684.5,3683.6,3.47915]
[1736210249450,2.534655,3684.4,3683.6,3.2078]
[1736210249647,9.34156856,3684.4,3683.6,3.2078]
[1736210249851,2.534655,3684.4,3683.6,3.2078]
[1736210250247,0.27132,3684.0,3683.2,44.0078]
[1736210250450,0.27132,3683.9,3683.2,44.0078]
[1736210250653,2.806005,3683.6,3683.2,44.0078]
[1736210250955,6.75249169,3683.5,3683.2,44.0078]
[1736210251246,6.75249169,3683.5,3682.8,3.2078]
[1736210251442,0.4549,3683.4,3682.8,3.2078]
[1736210251644,0.4549,3683.4,3683.0,0.27139]
[1736210251842,6.75249169,3683.5,3683.0,0.27139]
[1736210252042,0.4442,3684.5,3683.5,0.27135]
[1736210252043,6.013745,3684.4,3683.5,0.27135]
[1736210252248,0.2713,3684.3,3683.5,0.27135]
[1736210252440,13.0155999,3684.4,3683.6,0.27134]
[1736210252646,13.0155999,3684.4,3683.2,3.2078]
[1736210252951,13.0155999,3684.4,3683.6,3.47914]
[1736210253145,13.0155999,3684.4,3683.6,3.2078]
[1736210253345,0.2713,3684.3,3683.6,3.2078]
[1736210253545,0.27132,3684.1,3683.6,3.2078]
[1736210253850,7.12381855,3684.0,3683.6,3.2078]
[1736210254052,0.27132,3683.9,3683.6,3.2078]
[1736210254239,0.27134,3683.7,3683.6,3.2078]
[1736210254446,0.27133,3683.8,3683.1,3.2078]
[1736210254747,7.12382855,3683.9,3683.1,3.47918]
[1736210254952,0.27133,3683.8,3683.1,3.2078]
[1736210255245,6.85249855,3683.9,3683.1,3.2078]
[1736210255449,6.85249855,3683.9,3683.2,0.27138]
[1736210255647,6.85249855,3683.9,3683.1,3.2078]
[1736210255849,3.6389,3684.4,3683.5,3.2078]
[1736210256149,5.742455,3685.6,3684.3,3.2078]
[1736210256346,0.27123,3685.2,3684.7,3.2078]
[1736210256748,7.23008721,3685.5,3684.7,3.2078]
[1736210256944,7.23008721,3685.5,3684.7,3.47906]
[1736210257151,0.27122,3685.4,3684.8,40.8]
[1736210257654,6.79174066,3685.3,3684.8,40.8]
[1736210257950,3.2078,3685.6,3685.0,0.27124]
[1736210258144,6.175255,3686.0,3684.8,40.8]
[1736210258349,6.446425,3686.0,3685.2,3.47902]
[1736210258544,6.81252285,3685.7,3685.3,0.27122]
[1736210258750,6.81252285,3685.9,3685.2,3.2078]
[1736210258949,0.27118,3685.9,3685.2,3.2078]
[1736210259150,6.63279696,3685.8,3685.2,3.2078]
[1736210259451,0.27119,3685.8,3685.2,3.2078]
[1736210259843,6.63279696,3685.7,3685.2,3.2078]
[1736210260051,6.90399696,3685.7,3685.2,3.2078]
[1736210260453,6.63279696,3685.7,3685.2,3.2078]
[1736210260849,6.90398696,3685.7,3685.2,3.2078]
[1736210261049,6.90398696,3685.7,3685.0,0.27124]
[1736210261050,2.534655,3685.6,3684.9,0.0521]
[1736210261255,0.27121,3685.5,3684.8,3.2078]
[1736210261449,0.27121,3685.5,3684.8,3.47906]
[1736210261450,6.95350085,3685.5,3684.8,3.47906]
[1736210261647,6.68229085,3685.5,3684.8,3.2078]
[1736210261847,6.68229085,3685.5,3685.2,3.47902]